Cogmind - Beta 13 @@@ ROGUE MODE // 2024.02.25 @ 12:59:56 Player: arkn Result: Destroyed by G-34 Mercenary with Small Laser Performance ------------- Evolutions (1) 500 Regions Visited (2) 400 Robots Destroyed (25) 125 Value Destroyed (741) 741 Prototype IDs (0) 0 Alien Tech Used (0) 0 Bonus (0) 0 TOTAL SCORE: 1766 Bonus ------- None Cogmind --------- Core Integrity 0/400 Matter 148/300 Energy 100/100 System Corruption 2% Temperature Cool (6) Movement Walking (190) Ox1 Location -9/Materials Parts ------- > --- POWER (1) -------- (None) > --- PROPULSION (3) --- Improved Aluminum Leg > --- UTILITY (3) ------ Medium Storage Unit Seismic Detector Hardened Light Armor Plating > --- WEAPON (2) ------- Beam Rifle Beam Rifle > --- INVENTORY (10) --- Improved Treads Improved Treads Heat Sink Seismic Detector Tractor Beam Plasma Cutter Peak State ------------ > --- POWER ------------ Improved Ion Engine > --- PROPULSION ------- Armored Wheel Armored Wheel Armored Wheel > --- UTILITY ---------- Improved Heat Sink Medium Storage Unit Seismic Detector > --- WEAPON ----------- EM Pulse Gun Beam Rifle > --- INVENTORY -------- Ion Engine Improved Treads Improved Treads Improved Treads Improved Treads Armored Wheel Tractor Beam [Rating: 17] Favorites ----------- Power Ion Engine Engine Ion Engine Propulsion Armored Wheel Treads Improved Treads Leg Aluminum Leg Wheel Armored Wheel Utility Seismic Detector Device Seismic Detector Storage Medium Storage Unit Protection Hardened Light Armor Plating Weapon EM Pulse Gun Energy Gun EM Pulse Gun Energy Cannon Particle Cannon Ballistic Gun Heavy Assault Rifle Launcher Mini Grenade Launcher Special Weapon Mining Laser Build | -11 -10 -9 ------- Run | Yrd Mat Mat Slots Evolved 2 | . . 2 Power . | . . . Propulsion 1 | . . 1 Utility 1 | . . 1 Weapon . | . . . Parts Attached 41 | 1 6 34 Power 3 | . . 3 Engine 3 | . . 3 Core . | . . . Reactor . | . . . Propulsion 12 | . 2 10 Treads 3 | . . 3 Leg 2 | . . 2 Wheel 7 | . 2 5 Hover . | . . . Flight . | . . . Utility 14 | 1 3 10 Device 10 | 1 2 7 Storage 1 | . 1 . Processor . | . . . Hackware . | . . . Protection 3 | . . 3 Artifact . | . . . Weapon 12 | . 1 11 Energy Gun 4 | . 1 3 Energy Cannon 1 | . . 1 Ballistic Gun 4 | . . 4 Ballistic Cannon . | . . . Launcher 2 | . . 2 Special Weapon 1 | . . 1 Impact Weapon . | . . . Slashing Weapon . | . . . Piercing Weapon . | . . . Special Melee Weapon . | . . . Unidentified Prototypes . | . . . Corrupted Parts 3 | 1 . 2 System Corruption 3 | 1 . 2 Parts Lost 19 | . . 19 Power 3 | . . 3 Propulsion 7 | . . 7 Utility 2 | . . 2 Weapon 7 | . . 7 Highest Loss Streak 5 | . . 5 To Critical Strikes . | . . . Average Slot Usage (%) 91 | . 100 87 Engine 10 | . 14 9 Treads 5 | . . 8 Leg 3 | . 8 2 Wheel 19 | . 19 19 Device 15 | . 14 16 Storage 11 | . 14 11 Protection 2 | . . 3 Energy Gun 14 | . 28 9 Energy Cannon 1 | . . 2 Ballistic Gun 2 | . . 4 Naked Turns . | . . . Heaviest Build 27 | 15 21 27 Greatest Support 69 | 20 24 69 Greatest Overweight (x) 2 | . 1 2 Average Overweight (x) . | . . . Largest Inventory Capacity 10 | 8 10 10 Average Capacity 9 | 8 8 10 Most Carried 8 | 7 8 8 Average Carried 6 | 5 7 6 Final Capacity 10 | 8 10 10 Final Carried 8 | 7 8 6 Class Distribution -------------------- 97% | Mutant Dominant Class ---------------- Mutant | -10/Materials Mutant | -9/Materials Resources | -11 -10 -9 ----------- Run | Yrd Mat Mat Matter Collected 632 | 210 60 362 Remotely 211 | . . 211 Salvage Created 902 | 72 163 667 Parts 56 | 8 9 39 Haulers Intercepted . | . . . Recyclers Shooed 1 | 1 . . Parts Field Recycled . | . . . Retrieved Matter . | . . . Parts Self-Destructed . | . . . Prevented . | . . . Kills | -11 -10 -9 ------- Run | Yrd Mat Mat Combat Hostiles Destroyed 19 | . 2 17 Guns 17 | . 2 15 Cannons 1 | . . 1 AOE 1 | . . 1 Classes Destroyed 8 | 2 2 4 Worker 1 | . . 1 Tunneler 1 | 1 . . Recycler 1 | 1 . . Watcher 3 | . 3 . Swarmer 3 | . . 3 Grunt 12 | . 2 10 Duelist 1 | . . 1 Sentry 3 | . . 3 Best Kill Streak 6 | 2 2 6 Combat Bots Only 6 | . 2 6 Max Kills in Single Turn 1 | 1 1 1 Gunslinging . | . . . Exploded 1 | . . 1 Melee . | . . . Uniques/NPCs Destroyed . | . . . Combat | -11 -10 -9 -------- Run | Yrd Mat Mat Hostile Shots Fired 307 | . 14 293 Missed 90 | . 6 84 Damage Taken 2799 | . 107 2692 Core 449 | . 42 407 Absorbed by Shields . | . . . Core Remaining (%) 91 | 100 83 . Volleys Fired 105 | 3 13 89 Largest 2 | 2 2 2 Hottest 156 | 90 96 156 Shots Fired 159 | 6 26 127 Gun 142 | 6 26 110 Cannon 11 | . . 11 Launcher 4 | . . 4 Special 2 | . . 2 Kinetic 64 | . . 64 Thermal 68 | 3 13 52 Explosive 4 | . . 4 Electromagnetic 23 | 3 13 7 Robot Hit Streak 15 | 2 5 15 Robot Miss Streak 3 | 2 2 3 Penetration Max . | . . . Secondary Targets 2 | . . 2 Max Gunslinging Chain 1 | . . 1 Shots Hit Robots 100 | 4 12 84 Core Hits 43 | 3 6 34 Critical Kills 1 | . . 1 Critical Parts Destroyed 1 | . . 1 Critical Strikes 4 | . 1 3 Burn 1 | . 1 . Destroy 2 | . . 2 Corrupt 1 | . . 1 Melee Attacks . | . . . Impact . | . . . Slashing . | . . . Piercing . | . . . Sneak Attacks . | . . . Combat Hostiles . | . . . Follow-up Attacks . | . . . Damage Inflicted 1653 | 53 196 1404 Guns 1357 | 53 196 1108 Cannons 41 | . . 41 Explosions 195 | . . 195 Melee . | . . . Ramming 36 | . . 36 Kinetic 653 | . . 653 Thermal 588 | 25 118 445 Explosive 195 | . . 195 Electromagnetic 181 | 28 78 75 Impact . | . . . Slashing . | . . . Piercing . | . . . Highest Corruption 2 | 1 1 2 Average Corruption 1 | 1 1 1 Corruption Purged . | . . . Corruption Blocked . | . . . Effects 20 | . 1 19 Message Errors 6 | . 1 5 Matter Fused 6 | . . 6 Heat Flow Errors 4 | . . 4 Energy Discharges 1 | . . 1 Parts Fused 1 | . . 1 Data Loss (minor) 1 | . . 1 Data Loss (major) 1 | . . 1 Overload Shots . | . . . Overflow Damage . | . . . Projectiles . | . . . Explosions . | . . . Melee . | . . . Knockbacks . | . . . Impact . | . . . Kinetic . | . . . Secondary . | . . . Self-Inflicted Damage 36 | . . 36 Shots 2 | . . 2 Rammed 2 | . . 2 Targets Rammed 8 | . . 8 Kicked 6 | . . 6 Crushed . | . . . Highest Temperature 281 | 110 159 281 Average Temperature 80 | 55 70 87 Received Heat Transfer 1344 | . 63 1281 Effects 5 | . . 5 Energy Bleed 2 | . . 2 Interference 3 | . . 3 Siege Activations . | . . . Robots Corrupted . | . . . Combat Hostiles . | . . . Parts Fried . | . . . Impact Corruptions . | . . . Robots Melted . | . . . Combat Hostiles . | . . . Parts Melted 6 | . 2 4 Heat Transferred 1510 | 74 370 1066 Parts Sabotaged . | . . . Parts Stolen . | . . . Parts Stripped . | . . . Power Chain Reactions . | . . . Alert | -11 -10 -9 ------- Run | Yrd Mat Mat Peak Influence 303 | 10 146 303 Initial 61 | . 6 61 Average 134 | 8 46 174 Maximum Alert Level 1 | . . 1 Low Security (%) 72 | 100 100 60 Level 1 27 | . . 39 Level 2 . | . . . Level 3 . | . . . Level 4 . | . . . Level 5 . | . . . High Security . | . . . Max Security . | . . . Squads Dispatched 5 | . 1 4 Investigation 2 | . . 2 Extermination . | . . . Reinforcement 3 | . 1 2 Assault . | . . . Garrison . | . . . Intercept . | . . . Searches Triggered . | . . . Construction Impeded . | . . . Haulers Reinforced . | . . . Active Scanning Responses . | . . . Cargo Convoy Interrupts . | . . . Stealth | -11 -10 -9 --------- Run | Yrd Mat Mat Distress Signals 2 | . . 2 Communications Jammed . | . . . Distress Signals . | . . . Times Spotted 42 | . 7 35 Peak Tracking Total 11 | . 4 11 Tactical Retreats 2 | . 1 1 Traps | -11 -10 -9 ------- Run | Yrd Mat Mat Traps Triggered 2 | . . 2 Indirectly . | . . . Trap Hack Attempts . | . . . Triggered . | . . . Disarmed . | . . . Reprogrammed . | . . . Reused . | . . . Traps Extracted . | . . . Installed . | . . . Triggered . | . . . Machines | -11 -10 -9 ---------- Run | Yrd Mat Mat Machines Disabled 2 | . 1 1 Max in Single Turn 1 | . 1 1 Machines Repaired . | . . . Machines Dismantled . | . . . Machines Sabotaged . | . . . Overloaded Fab Kills . | . . . Hacking | -11 -10 -9 --------- Run | Yrd Mat Mat Machines Accessed 5 | . 3 2 Terminals 5 | . 3 2 Fabricators . | . . . Repair Stations . | . . . Recycling Units . | . . . Scanalyzers . | . . . Garrison Access . | . . . Total Hacks 13 | . 8 5 Successful 8 | . 7 1 Failed 5 | . 1 4 Catastrophic . | . . . Database Lockouts . | . . . Manual 12 | . 7 5 Terminals 13 | . 8 5 Fabricators . | . . . Repair Stations . | . . . Recycling Units . | . . . Scanalyzers . | . . . Garrison Access . | . . . Terminal Hacks 2 | . 2 . Terminal Index 1 | . 1 . Zone Layout 1 | . 1 . Fabricator Hacks . | . . . Repair Station Hacks . | . . . Recycling Unit Hacks . | . . . Scanalyzer . | . . . Garrison Access Hacks . | . . . Unauthorized Hacks 6 | . 5 1 Terminals 6 | . 5 1 Track 2 | . 2 . Botnet 3 | . 3 . Disrupt 1 | . . 1 Fabricators . | . . . Repair Stations . | . . . Recycling Units . | . . . Scanalyzers . | . . . Garrison Access . | . . . Data Cores Recovered . | . . . Used . | . . . Hacking Detections 5 | . 3 2 Full Trace Events . | . . . Feedback Events . | . . . Feedback Blocked . | . . . Robot Schematics Acquired . | . . . Robots Built . | . . . Authchips . | . . . Time . | . . . Total Robot Build Rating . | . . . Part Schematics Acquired . | . . . Parts Built . | . . . Authchips . | . . . Time . | . . . Total Part Build Rating . | . . . Parts Repaired . | . . . Time . | . . . Parts Recycled . | . . . Recycled Matter . | . . . Retrieved Matter . | . . . Retrieved Components . | . . . Parts Scanalyzed . | . . . Part Schematics Acquired . | . . . Parts Damaged . | . . . Bothacking | -11 -10 -9 ------------ Run | Yrd Mat Mat Used RIF Installer . | . . . Robots Hacked . | . . . Non-combat . | . . . Combat . | . . . Robot Hacks Applied . | . . . Relay Couplers Released . | . . . Fabnet Peak Effective % . | . . . Robots Rewired . | . . . Allies Hacked . | . . . Hacks Repelled . | . . . Allies | -11 -10 -9 -------- Run | Yrd Mat Mat Total Allies . | . . . Largest Group . | . . . Highest-Rated Group . | . . . Highest-Rated Ally . | . . . Total Orders . | . . . Ally Attacks . | . . . Total Damage . | . . . Kills . | . . . Allies Corrupted . | . . . Allies Melted . | . . . Intel | -11 -10 -9 ------- Run | Yrd Mat Mat Robot Analysis Total . | . . . Derelict Logs Recovered . | . . . Drone Launches . | . . . Drone Recoveries . | . . . Exploration | -11 -10 -9 ------------- Run | Yrd Mat Mat Turns Passed 1302 | 34 365 903 Spaces Moved 883 | 17 291 575 Core . | . . . Treads 41 | . . 41 Legs 158 | 17 85 56 Wheels 684 | . 206 478 Hover . | . . . Flight . | . . . Fastest Speed 90 | 120 90 90 Average Speed 101 | 120 98 102 Slowest Speed 190 | 120 120 190 Overloaded Moves . | . . . Propulsion Burnouts . | . . . Robots Hopped . | . . . Cave-ins Triggered . | . . . Exploration Rate (%) 32 | 3 37 58 Regions Visited 2 Branch Regions . Pre-discovered Areas . | . . . Known Exits Taken . | . . . Unknown Exits Taken 2 | 1 1 . Scrap Searched . | . . . Spaces Dug . | . . . Terrain Destroyed 37 | . . 37 Melee . | . . . Projectile 1 | . . 1 AOE 36 | . . 36 Terrain Rammed . | . . . Walls Destroyed . | . . . Machines Disabled . | . . . Actions | -11 -10 -9 --------- Run | Yrd Mat Mat Total 1119 | 25 346 748 Wait 55 | . 20 35 Move 881 | 16 290 575 Hop . | . . . Pick Up 14 | 3 7 4 Fast Attach 18 | 1 3 14 Attach 9 | . . 9 Detach 1 | . . 1 Swap 14 | . 3 11 Drop 14 | 2 10 2 Fire 105 | 3 13 89 Melee . | . . . Ram 2 | . . 2 Kick 6 | . . 6 Crush . | . . . Escape Stasis . | . . . Rewire . | . . . Trap . | . . . Miscellaneous . | . . . Route ------- -11/Scrapyard -10/Materials -9/Materials (discovered 5 exits: [*Mat x3] / [*Min] / [*Sto]) History --------- Turn | Location | Event 12 | -11/Scrapyard | Discovered new exit (range 3) 35 | -11/Scrapyard | Entered Materials 307 | -10/Materials | Build established: Mutant 377 | -10/Materials | Discovered new exit (range 16) 400 | -10/Materials | Entered another Materials area 400 | -9/Materials | Evolved 2 slots: Propulsion x1, Utility x1 675 | -9/Materials | Discovered new exit (range 4) 885 | -9/Materials | Core integrity fell below 50% 895 | -9/Materials | Discovered new exit (range 12) 962 | -9/Materials | Discovered new exit (range 4) 969 | -9/Materials | Lost 3 parts (1n1u1w) 1147 | -9/Materials | Discovered new exit (range 5) 1180 | -9/Materials | Lost 5 parts (3n2w) 1272 | -9/Materials | Core integrity fell below 20% 1286 | -9/Materials | Discovered new exit (range 16) 1303 | -9/Materials | Destroyed by G-34 Mercenary with Small Laser Last Messages --------------- 01207_ U-05 Engineer lays Concrete. 01210_ Acquired Imp. Aluminum Leg. 01215_ K-01 Serf cleans the Atomic Centrifuge. 01234_ Acquired Hrd. Light Armor Plating. 01240_ Particle Cannon destroyed. 01243_ System corrupted: Matter fused (-9). 01245_ Kicked G-34 Mercenary. 01247_ Kicked G-34 Mercenary out of the way. 01248_ Kicked G-34 Mercenary. 01251_ Kicked G-34 Mercenary out of the way. 01252_ Arm. Wheel destroyed. 01268_ System corrupted: Heat flow error (+122). 01269_ Imp. Ion Engine destroyed. 01273_ Acquired Beam Rifle. 01284_ Imp. Aluminum Leg destroyed. 01285_ System corrupted: Matter fused (-9). 01286_ EXIT=FOUND 01299_ Triggered Alarm Trap. 01299_ An alarm sounds. 01299_ ALERT: Alarm triggered, dispatching investigation squad. Map ----- +----------------------------------------------------+ | ????????????????????????????????????????????? | | ????????????????????????????????????????????? | | ????????????????????????????????????????????? | | ????????????????????????????????????????????? | | ????????????????????????????????????????????? | | ???????????###########??????????????????????? | | ??########## #??????????????????????? | | ??# # #??????????????????????? | | ??# """ # = #??????????????????????? | | ??# """ # #??????????????????????? | | ??# """ | ####+##+###??????????????????????? | | ??# ## #????????????????????????? | | ??# """ / #????????????????????????? | | ??# """ ## #+########?????????????????? | | ??# """ ## # #?????????????????? | | ??# ## # """""#?????????????????? | | ??#######+## # """""??????????????????? | | ??# # """""??????????????????? | | ??# + """""??????????????????? | | ??# [[ # """""??????????????????? | | ??# """ ! # """"???????????????????? | | ??# """ ! # """"???????????????????? | | ### """ # ???????????????????? | | g ##################?????????? | | g g g #?????????? | | g @ g #?????????? | | ### g g #?????????? | | #### ############ #######+####?????????? | | # #??????????# #????????????????????? | | + ############ #????????????????????? | | # + # #????????????????????? | | + ##### # #????????????????????? | | ?## ##???# """ # #????????????????????? | | ??# #????# """ + #????????????????????? | | #???# ###### """ ## ##????????????????????? | | ##### # ##/#?????????????????????? | | + """ # ?????????????????????? | | # """ # ?????????????????????? | | # """ # ""?????????????????????? | | """ # # ???????????????????????? | | """"" # #????????????????????????? | | """"" #########????????????????????????? | | """"" #???????????????????????????????? | | """ #???????????????????????????????? | | #???????????????????????????????? | | #???????????????????????????????? | | #???????????????????????????????? | | #############???????????????????????????????? | | ????????????????????????????????????????????? | | ????????????????????????????????????????????? | +----------------------------------------------------+ Best States ------------- Heat Dissipation 42 Energy Generation 12 Energy Capacity 265 Matter Stores 300 Matter Capacity 300 Sight Range 16 Terrain Scan Density 10 Armor Coverage 150 Evasion (%) 55 Recoil Reduction 3 Item Schematics ----------------- None Robot Schematics ------------------ None Fabricated ------------ Nothing Alien Tech Used ----------------- None Achievements -------------- None Challenges ------------ None Game ------ Seed MultitargetingPlasmaPick Manual? 0 Play Time 00:23:32 Cumulative 136.1 hours Start 2024.02.25 @ 12:34:19 End 2024.02.25 @ 12:59:56 Sessions 1 Manual Loads 0 Difficulty Rogue Special Mode None Game No. 118 Rogue 112 Adventurer 0 Explorer 6 Win Type - Total 3 Types 3/0/0/0/0/0/0/0/0 Lore% 41 Gallery% 55 Achievement% 47 Wizard Run 0 Options --------- Layout 0 ASCII 0 Keyboard 0 Movement Numpad Keybinds 0 Fullscreen 1 Font 24/Proggy Map View 113x50 Zoom Use 0% Tactical HUD 1 Map Filters NONE Filters NONE Steam X RUN: bdbb271c-4c66-4579-9296-2e514a55d1fa